Cogmind - Beta 16.1 @@@ ROGUE MODE // 2026.04.09 @ 22:49:38 Player: Ammie Result: Destroyed by H-66 Slayer with Heavy Assault Rifle Performance ------------- Evolutions (4) 2000 Regions Visited (9) 1800 Robots Destroyed (99) 495 Value Destroyed (3418) 3418 Prototype IDs (34) 680 Alien Tech Used (0) 0 Bonus (570) 570 TOTAL SCORE: 8963 Bonus ------- High Alert Combat Kills 196 Follower Combat Kills 104 Aligned with FarCom 300 Friendly Fire -30 Cogmind --------- Core Integrity 0/850 Matter 300/300 Energy 95/100 System Corruption 0% Temperature Cool (12) Movement Core (100) Ox1 Location -6/Factory Parts ------- > --- POWER (2) -------- (None) > --- PROPULSION (6) --- (None) > --- UTILITY (4) ------ Advanced Targeting Computer Core Analyzer > --- WEAPON (3) ------- Heavy Laser > --- INVENTORY (5) ---- (None) Peak State ------------ > --- POWER ------------ Deuterium Engine Deuterium Engine > --- PROPULSION ------- Flying Fortress v7 > --- UTILITY ---------- Improved Heat Sink Small Storage Unit Hacking Suite > --- WEAPON ----------- YOLO Cannon > --- INVENTORY -------- VTOL Module Improved VTOL Module Heat Sink Hacking Suite Field Laser Beam Cannon Flak Cannon Shock Bomb Launcher [Rating: 67] Favorites ----------- Power Ion Engine Engine Ion Engine Power Core Enhanced Nuclear Core Propulsion Improved VTOL Module Leg Aluminum Leg Hover Unit Gravmag System Flight Unit Improved VTOL Module Utility Improved Heat Sink Device Improved Heat Sink Storage Small Storage Unit Processor Core Analyzer Hackware Hacking Suite Protection Improved Light Armor Plating Weapon Cooled Pulse Rifle Energy Gun Cooled Pulse Rifle Energy Cannon Beam Cannon Ballistic Gun Precision Assault Rifle Ballistic Cannon Light Cannon Launcher Grenade Launcher Build | -11 -10 -10 -10 -9 -8 -7 -7 -7 -6 ------- Run | Yrd Mat Min Exi Min Mat Fac Was Fac Fac Slots Evolved 8 | . . . . . 4 2 . . 2 Power 1 | . . . . . 1 . . . . Propulsion 4 | . . . . . 2 1 . . 1 Utility 2 | . . . . . 1 1 . . . Weapon 1 | . . . . . . . . . 1 Parts Attached 93 | 6 7 1 1 . 18 29 . 13 18 Power 23 | 1 1 . . . 4 8 . 5 4 Engine 15 | 1 1 . . . 4 3 . 3 3 Core 8 | . . . . . . 5 . 2 1 Reactor . | . . . . . . . . . . Propulsion 21 | 2 2 . . . 6 4 . 5 2 Treads . | . . . . . . . . . . Leg 8 | 2 2 . . . . 2 . 2 . Wheel . | . . . . . . . . . . Hover 2 | . . . . . . . . . 2 Flight 11 | . . . . . 6 2 . 3 . Utility 20 | 1 2 . . . 4 7 . 2 4 Device 15 | . 2 . . . 3 4 . 2 4 Storage 1 | 1 . . . . . . . . . Processor 2 | . . . . . . 2 . . . Hackware 1 | . . . . . 1 . . . . Protection 1 | . . . . . . 1 . . . Artifact . | . . . . . . . . . . Weapon 29 | 2 2 1 1 . 4 10 . 1 8 Energy Gun 18 | 2 . . . . 2 7 . 1 6 Energy Cannon 6 | . 1 . 1 . 1 1 . . 2 Ballistic Gun 1 | . . . . . . 1 . . . Ballistic Cannon 2 | . 1 . . . 1 . . . . Launcher 2 | . . 1 . . . 1 . . . Special Weapon . | . . . . . . . . . . Impact Weapon . | . . . . . . . . . . Slashing Weapon . | . . . . . . . . . . Piercing Weapon . | . . . . . . . . . . Special Melee Weapon . | . . . . . . . . . . Unidentified Prototypes 9 | . . . . . 3 5 . 1 . Corrupted Parts 2 | . . . . . . . . 2 . System Corruption 6 | . . . . . . . . 6 . Parts Lost 48 | . . . . . 6 17 . 2 23 Power 11 | . . . . . 1 5 . . 5 Propulsion 13 | . . . . . 1 5 . 1 6 Utility 9 | . . . . . 2 4 . . 3 Weapon 15 | . . . . . 2 3 . 1 9 Highest Loss Streak 13 | . . . . . 6 7 . 2 13 To Critical Strikes 2 | . . . . . . . . . 2 Average Backups 5 | 1 3 8 6 5 5 4 5 4 3 Power . | . 1 1 1 1 . . . . 1 Propulsion . | . . 3 1 1 . . . . . Utility 1 | . . 2 1 1 1 2 2 1 . Weapon 1 | . 1 2 2 2 2 2 3 2 1 Tool/Special . | . . . . . . . . . . Unused Backups 12 | . . . 3 . 3 2 . 3 1 Power 2 | . . . . . . 1 . . 1 Propulsion 3 | . . . 1 . 1 . . 1 . Utility 3 | . . . 1 . 1 . . 1 . Weapon 4 | . . . 1 . 1 1 . 1 . Tool/Special . | . . . . . . . . . . Average Slot Usage (%) 86 | . 98 100 91 85 63 84 76 87 71 Engine 9 | . 14 14 14 14 15 5 . 5 2 Core 3 | . . . . . . 7 . 4 6 Leg 12 | . 28 28 28 28 . . 15 5 . Flight 13 | . . . . . 13 25 15 25 21 Device 15 | . 12 14 14 14 9 21 15 14 11 Storage 6 | . 14 14 14 14 5 . . . . Processor 3 | . . . . . . 1 15 15 13 Hackware 1 | . . . . . 8 4 . . . Energy Gun 8 | . 14 . . . 1 11 15 14 13 Energy Cannon 5 | . 1 14 13 14 6 1 . . 1 Ballistic Cannon 2 | . 12 3 . . 2 . . . . Launcher 2 | . . 10 6 . . 1 . . . Peak Build Rating 67 | 6 9 9 30 30 67 51 34 49 56 Average Rating 30 | 4 7 9 20 30 47 42 34 44 44 On Entrance 23 | . 6 9 9 30 30 37 34 34 48 Avg Prop Armor Cover (%) 17 | . . . . . . 3 20 19 3 Naked Turns . | . . . . . . . . . . Heaviest Build 42 | 13 17 17 29 29 42 31 9 27 31 Greatest Support 50 | 20 20 20 20 20 50 31 10 29 29 Greatest Overweight (x) 3 | 1 . . 1 1 2 1 . 1 3 Average Overweight (x) . | . . . . 1 . . . . . Largest Inventory Capacity 8 | 8 8 8 8 8 8 5 5 5 5 Average Capacity 6 | 7 8 8 8 8 6 5 5 5 5 Most Carried 8 | 2 8 8 8 8 8 5 5 5 5 Average Carried 5 | 1 3 8 7 8 5 4 5 4 3 Final Capacity 8 | 8 8 8 8 8 5 5 5 5 5 Final Carried 8 | 2 8 8 8 8 5 5 5 5 . Class Distribution -------------------- 76% | Mutant 20% | Sprinter Dominant Class ---------------- Mutant | -10/Materials Mutant | -10/Mines Mutant | -10/Exiles Mutant | -9/Mines Mutant | -8/Materials Mutant | -7/Factory Mutant | -7/Waste Sprinter | -7/Factory Sprinter | -6/Factory Resources | -11 -10 -10 -10 -9 -8 -7 -7 -7 -6 ----------- Run | Yrd Mat Min Exi Min Mat Fac Was Fac Fac Matter Collected 1531 | 228 214 38 . 10 339 340 . 172 190 Remotely . | . . . . . . . . . . Salvage Created 3750 | . 313 15 . 100 719 1759 . 485 359 Parts 187 | . 13 3 . 3 40 70 . 35 23 Haulers Intercepted 10 | . 2 . . . 3 4 . 1 . Recyclers Shooed 3 | . . . . . 1 1 . 1 . Parts Field Recycled . | . . . . . . . . . . Retrieved Matter . | . . . . . . . . . . Parts Self-Destructed . | . . . . . . . . . . Prevented . | . . . . . . . . . . Parts Restored . | . . . . . . . . . . Kills | -11 -10 -10 -10 -9 -8 -7 -7 -7 -6 ------- Run | Yrd Mat Min Exi Min Mat Fac Was Fac Fac Combat Hostiles Destroyed 62 | . 7 3 . 3 14 24 . 6 5 Guns 30 | . 1 . . . 1 17 . 6 5 Cannons 13 | . 6 . . . 5 2 . . . AOE 15 | . . 3 . 3 6 3 . . . Classes Destroyed 11 | . 2 1 . . 5 3 . . . Worker 7 | . . . . . 3 2 . 2 . Builder 4 | . . . . . 2 . . 1 1 Hauler 10 | . 2 . . . 3 4 . 1 . Recycler 2 | . . . . . . 1 . 1 . Operator 1 | . . . . . . 1 . . . Watcher 13 | . . . . . 4 7 . 1 1 Swarmer 9 | . . 3 . . 2 4 . . . Grunt 35 | . 7 . . 3 8 11 . 3 3 Sentry 6 | . . . . . 3 3 . . . Hunter 4 | . . . . . 1 2 . . 1 Programmer 8 | . . . . . . 4 . 3 1 Best Kill Streak 6 | . 4 3 . 3 6 5 . 3 3 Combat Bots Only 5 | . 2 3 . 3 3 5 . 2 3 Max Kills in Single Turn 3 | . 1 3 . 3 3 2 . 2 1 Gunslinging 1 | . . . . . . 1 . . . Exploded 3 | . . 3 . 3 3 2 . . . Melee . | . . . . . . . . . . Uniques/NPCs Destroyed . | . . . . . . . . . . Combat | -11 -10 -10 -10 -9 -8 -7 -7 -7 -6 -------- Run | Yrd Mat Min Exi Min Mat Fac Was Fac Fac Hostile Shots Fired 557 | . 32 . . 2 56 215 . 25 227 Missed 202 | . 10 . . 1 25 79 . 11 76 Hits 355 | . 22 . . 1 31 136 . 14 151 Projectile 355 | . 22 . . 1 31 136 . 14 151 AOE 1 | . . . . . . . . . 1 Critical Strikes 12 | . . . . . . 8 . . 4 Damage Taken 5923 | . 285 . . 13 728 2156 . 293 2448 Core 1570 | . 18 . . . 162 433 . 105 852 Absorbed by Shields . | . . . . . . . . . . Regen/Repaired (Parts) 159 | . . . . . . 115 . 44 . Core Remaining (%) 60 | 100 . . . 92 25 . . 23 . Volleys Fired 247 | . 34 2 . 2 44 110 . 23 32 Largest 3 | . 2 2 . 1 2 2 . 2 3 Hottest 217 | . 80 90 . 100 118 131 . 135 217 Shots Fired 443 | . 68 4 . 2 51 205 . 42 71 Gun 314 | . 34 . . . 8 168 . 42 62 Cannon 122 | . 34 4 . 2 43 30 . . 9 Launcher 7 | . . . . . . 7 . . . Special . | . . . . . . . . . . Kinetic 55 | . 34 2 . . 19 . . . . Thermal 326 | . 34 2 . 2 26 186 . 37 39 Explosive . | . . . . . . . . . . Electromagnetic 62 | . . . . . 6 19 . 5 32 Robot Hit Streak 12 | . 5 . . . 6 12 . 12 8 Robot Miss Streak 8 | . 4 . . 2 8 3 . 3 2 Penetration Max . | . . . . . . . . . . Secondary Targets 3 | . . . . . . 3 . . . Max Gunslinging Chain 1 | . . . . . . 1 . . . Shots Hit Robots 261 | . 41 . . . 31 132 . 27 30 Core Hits 154 | . 12 2 . 3 39 54 . 28 16 Critical Kills 2 | . . . . . 2 . . . . Critical Parts Destroyed . | . . . . . . . . . . Critical Strikes 9 | . 3 . . . 2 3 . . 1 Burn 6 | . 2 . . . . 3 . . 1 Meltdown 2 | . . . . . 2 . . . . Blast 1 | . 1 . . . . . . . . Melee Attacks . | . . . . . . . . . . Impact . | . . . . . . . . . . Slashing . | . . . . . . . . . . Piercing . | . . . . . . . . . . Sneak Attacks . | . . . . . . . . . . Combat Hostiles . | . . . . . . . . . . Follow-up Attacks . | . . . . . . . . . . Damage Inflicted 8966 | . 687 125 . 244 2193 4118 . 832 767 Guns 4869 | . 200 . . . 91 3285 . 694 599 Cannons 1913 | . 483 . . . 952 397 . . 81 Explosions 2159 | . . 125 . 244 1150 427 . 138 75 Melee . | . . . . . . . . . . Ramming 25 | . 4 . . . . 9 . . 12 Kinetic 752 | . 483 . . . 269 . . . . Thermal 7210 | . 200 125 . 244 1851 3701 . 664 425 Explosive . | . . . . . . . . . . Electromagnetic 979 | . . . . . 73 408 . 168 330 Impact . | . . . . . . . . . . Slashing . | . . . . . . . . . . Piercing . | . . . . . . . . . . Highest Corruption 5 | . . . . . . . . 5 . Average Corruption 4 | . . . . . . . . 4 . Corruption Purged 5 | . . . . . . . . 5 . Corruption Blocked . | . . . . . . . . . . Effects 12 | . . . . . . . . 12 . Message Errors 3 | . . . . . . . . 3 . Matter Fused 2 | . . . . . . . . 2 . Heat Flow Errors 2 | . . . . . . . . 2 . Parts Fused 1 | . . . . . . . . 1 . Data Loss (minor) 3 | . . . . . . . . 3 . Alerts 1 | . . . . . . . . 1 . Overload Shots 93 | . . . . . . 70 . 14 9 Effects 7 | . . . . . . 3 . 2 2 Energy Bleed 4 | . . . . . . 2 . 2 . Heat Surge 2 | . . . . . . 1 . . 1 Short Circuit 1 | . . . . . . . . . 1 Overflow Damage 264 | . . 29 . . 150 45 . . 40 Projectiles 46 | . . . . . 46 . . . . Explosions 218 | . . 29 . . 104 45 . . 40 Melee . | . . . . . . . . . . Knockbacks 9 | . 1 . . . 8 . . . . Impact . | . . . . . . . . . . Kinetic 9 | . 1 . . . 8 . . . . Secondary . | . . . . . . . . . . Self-Inflicted Damage 654 | . . . . . 311 262 . . 81 Shots 11 | . . . . . 5 5 . . 1 Rammed 2 | . . . . . . 1 . . 1 Targets Rammed 3 | . 1 . . . . 1 . . 1 Kicked 1 | . 1 . . . . . . . . Crushed . | . . . . . . . . . . Highest Temperature 466 | . 7 . . . 141 466 . 280 211 Average Temperature 62 | . 3 . . . 37 82 . 64 49 Received Heat Transfer 861 | . 162 . . 9 171 312 . 72 135 Effects 2 | . . . . . . 2 . . . Shutdowns 2 | . . . . . . 2 . . . Siege Activations . | . . . . . . . . . . Martial Activations . | . . . . . . . . . . Shielding Activations . | . . . . . . . . . . Robots Disrupted 2 | . . . . . . . . 1 1 Combat Hostiles 2 | . . . . . . . . 1 1 Robots Corrupted . | . . . . . . . . . . Combat Hostiles . | . . . . . . . . . . Parts Fried 3 | . . . . . . 2 . . 1 Impact Corruptions . | . . . . . . . . . . Robots Melted 4 | . . . . . 2 2 . . . Combat Hostiles 4 | . . . . . 2 2 . . . Parts Melted 19 | . . . . . 4 14 . . 1 Heat Transferred 10405 | . 740 150 . 240 2025 5516 . 925 809 Parts Sabotaged . | . . . . . . . . . . Parts Stolen . | . . . . . . . . . . Parts Stripped . | . . . . . . . . . . Power Chain Reactions 3 | . . . . . . 2 . 1 . Alert | -11 -10 -10 -10 -9 -8 -7 -7 -7 -6 ------- Run | Yrd Mat Min Exi Min Mat Fac Was Fac Fac Maximum Alert Level 2 | . . . . . 2 2 . 1 1 Low Security (%) 63 | 100 100 100 . 100 29 . 100 97 99 Level 1 22 | . . . . . 23 68 . 2 . Level 2 13 | . . . . . 47 31 . . . Level 3 . | . . . . . . . . . . Level 4 . | . . . . . . . . . . Level 5 . | . . . . . . . . . . High Security . | . . . . . . . . . . Max Security . | . . . . . . . . . . Peak Influence 618 | . 84 114 . 144 618 498 171 209 206 Initial 277 | . . 22 . . 9 277 171 91 54 Average 180 | . 25 13 . 62 364 370 153 146 95 Influence Increases 3030 | . 209 92 . 144 886 928 . 375 396 Destroy 0b10 Robot/C 1320 | . 140 60 . 60 360 480 . 120 100 Destroy 0b10 Robot/NC 190 | . 10 . . . 65 75 . 30 10 Destroy Leader 364 | . 34 10 . 10 94 150 . 44 22 Allied During Kill 35 | . . . . 8 27 . . . . Successful Hack 87 | . 10 . . . 8 40 . 29 . Disable Machine 420 | . . 15 . 60 60 60 . 105 120 Destroy Structure 374 | . . 7 . 6 227 63 . 2 69 Partial Spotted 15 | . . . . . . 15 . . . Lose Combat Pursuer 225 | . 15 . . . 45 45 . 45 75 Influence Decreases 3030 | . 150 151 . 120 300 1049 358 394 508 Entered New Map 801 | . . 37 . . 15 333 318 40 58 Time Decay 1699 | . 150 114 . 120 205 546 40 334 190 Lost Part 472 | . . . . . 60 170 . 20 222 Lost Ally 58 | . . . . . 20 . . . 38 Squads Dispatched 16 | . 2 . . . 2 5 . 2 5 Investigation 5 | . 2 . . . . 1 . . 2 Extermination 6 | . . . . . . 3 . 2 1 Reinforcement 5 | . . . . . 2 1 . . 2 Assault . | . . . . . . . . . . Garrison . | . . . . . . . . . . Intercept . | . . . . . . . . . . Searches Triggered . | . . . . . . . . . . Construction Impeded 2 | . . . . . 2 . . . . Haulers Reinforced 1 | . . . . . . 1 . . . Active Scanning Responses . | . . . . . . . . . . Cargo Convoy Interrupts . | . . . . . . . . . . Stealth | -11 -10 -10 -10 -9 -8 -7 -7 -7 -6 --------- Run | Yrd Mat Min Exi Min Mat Fac Was Fac Fac Distress Signals 7 | . 2 . . . 4 . . . 1 Communications Jammed . | . . . . . . . . . . Distress Signals . | . . . . . . . . . . Times Spotted 125 | . 9 . . 3 29 41 6 17 20 Peak Tracking Total 7 | . 4 . . 3 5 4 6 6 7 Tactical Retreats 9 | . 1 . . . 2 2 . 1 3 Traps | -11 -10 -10 -10 -9 -8 -7 -7 -7 -6 ------- Run | Yrd Mat Min Exi Min Mat Fac Was Fac Fac Traps Triggered 6 | . 1 . . . . 1 . 4 . Indirectly 3 | . . . . . . . . 3 . Trap Hack Attempts . | . . . . . . . . . . Triggered . | . . . . . . . . . . Disarmed . | . . . . . . . . . . Reprogrammed . | . . . . . . . . . . Reused . | . . . . . . . . . . Traps Extracted . | . . . . . . . . . . Installed . | . . . . . . . . . . Triggered . | . . . . . . . . . . Machines | -11 -10 -10 -10 -9 -8 -7 -7 -7 -6 ---------- Run | Yrd Mat Min Exi Min Mat Fac Was Fac Fac Machines Disabled 28 | . . 1 . 4 4 4 . 7 8 Max in Single Turn 6 | . . 1 . 2 3 4 . 6 5 Garrison Access 1 | . . . . . . 1 . . . Machines Repaired . | . . . . . . . . . . Machines Dismantled . | . . . . . . . . . . Machines Sabotaged . | . . . . . . . . . . Overloaded Fab Kills . | . . . . . . . . . . Hacking | -11 -10 -10 -10 -9 -8 -7 -7 -7 -6 --------- Run | Yrd Mat Min Exi Min Mat Fac Was Fac Fac Machines Accessed 19 | . 3 . 2 . 2 7 . 3 2 Terminals 9 | . 3 . . . 1 4 . 1 . Fabricators 1 | . . . . . . . . . 1 Repair Stations 2 | . . . . . . 1 . 1 . Recycling Units . | . . . . . . . . . . Scanalyzers 4 | . . . . . 1 1 . 1 1 Garrison Access 1 | . . . . . . 1 . . . Total Hacks 53 | . 8 . 10 . 4 12 . 9 10 Successful 34 | . 3 . 10 . 3 7 . 5 6 Failed 19 | . 5 . . . 1 5 . 4 4 Catastrophic . | . . . . . . . . . . Database Lockouts . | . . . . . . . . . . Manual 4 | . 3 . 1 . . . . . . Terminals 22 | . 8 . . . 3 8 . 3 . Fabricators 6 | . . . . . . . . . 6 Repair Stations 5 | . . . . . . 2 . 3 . Recycling Units . | . . . . . . . . . . Scanalyzers 9 | . . . . . 1 1 . 3 4 Garrison Access 1 | . . . . . . 1 . . . Terminal Hacks 20 | . 3 . 10 . 2 4 . 1 . Record 11 | . . . 9 . . 1 . 1 . Prototype ID Bank 1 | . . . . . 1 . . . . Open DSF 1 | . . . . . . 1 . . . Transport Status 1 | . 1 . . . . . . . . Investigation Status 1 | . . . . . 1 . . . . Hauler Manifests 2 | . 1 . . . . 1 . . . Registered Prototypes 1 | . . . . . . 1 . . . Zone Layout 1 | . 1 . . . . . . . . Proto ID Catalog 1 | . . . 1 . . . . . . Fabricator Hacks 2 | . . . . . . . . . 2 Load Schematic 1 | . . . . . . . . . 1 Build 1 | . . . . . . . . . 1 Repair Station Hacks 4 | . . . . . . 2 . 2 . Scan Component 2 | . . . . . . 1 . 1 . Repair 2 | . . . . . . 1 . 1 . Recycling Unit Hacks . | . . . . . . . . . . Scanalyzer 7 | . . . . . 1 . . 2 4 Insert Component 2 | . . . . . . . . 1 1 Analyze 3 | . . . . . . . . 1 2 Retrieve Study 2 | . . . . . 1 . . . 1 Garrison Access Hacks 1 | . . . . . . 1 . . . Seal Access 1 | . . . . . . 1 . . . Unauthorized Hacks . | . . . . . . . . . . Terminals . | . . . . . . . . . . Fabricators . | . . . . . . . . . . Repair Stations . | . . . . . . . . . . Recycling Units . | . . . . . . . . . . Scanalyzers . | . . . . . . . . . . Garrison Access . | . . . . . . . . . . Data Cores Recovered 2 | . . . . . 1 1 . . . Used . | . . . . . . . . . . Hacking Detections 14 | . 3 . . . 1 5 . 3 2 Full Trace Events 4 | . 1 . . . . 1 . . 2 Feedback Events 1 | . . . . . . 1 . . . Hackware Fried 1 | . . . . . . 1 . . . Feedback Blocked . | . . . . . . . . . . Robot Schematics Acquired . | . . . . . . . . . . Robots Built . | . . . . . . . . . . Authchips . | . . . . . . . . . . Time . | . . . . . . . . . . Total Robot Build Rating . | . . . . . . . . . . Part Schematics Acquired 2 | . . . . . . . . 1 1 Parts Built . | . . . . . . . . . . Authchips . | . . . . . . . . . . Time 84 | . . . . . . . . . 84 Total Part Build Rating . | . . . . . . . . . . Part Studies Acquired 2 | . . . . . 1 . . . 1 Parts Repaired 2 | . . . . . . 1 . 1 . Time 100 | . . . . . . 70 . 30 . Parts Recycled . | . . . . . . . . . . Recycled Matter . | . . . . . . . . . . Retrieved Matter . | . . . . . . . . . . Retrieved Components . | . . . . . . . . . . Parts Scanalyzed 2 | . . . . . . . . 1 1 Part Schematics Acquired 2 | . . . . . . . . 1 1 Parts Damaged 1 | . . . . . . . . 1 . Bothacking | -11 -10 -10 -10 -9 -8 -7 -7 -7 -6 ------------ Run | Yrd Mat Min Exi Min Mat Fac Was Fac Fac Used RIF Installer . | . . . . . . . . . . Robots Hacked . | . . . . . . . . . . Non-combat . | . . . . . . . . . . Combat . | . . . . . . . . . . Robot Hacks Applied . | . . . . . . . . . . Relay Couplers Released . | . . . . . . . . . . Fabnet Peak Effective % . | . . . . . . . . . . Robots Rewired 1 | . . . . . . . . . 1 Allies Hacked . | . . . . . . . . . . Hacks Repelled . | . . . . . . . . . . Allies | -11 -10 -10 -10 -9 -8 -7 -7 -7 -6 -------- Run | Yrd Mat Min Exi Min Mat Fac Was Fac Fac Total Allies 3 | . . . . 2 . . . . 1 Largest Group 2 | . . . . 2 2 . . . 1 Highest-Rated Group 39 | . . . . 39 39 . . . 20 Highest-Rated Ally 31 | . . . . 31 31 . . . 20 Total Orders . | . . . . . . . . . . Ally Attacks 28 | . . . . . 28 . . . . Total Damage 380 | . . . . . 380 . . . . Kills 5 | . . . . . 5 . . . . Allies Corrupted . | . . . . . . . . . . Allies Melted . | . . . . . . . . . . Intel | -11 -10 -10 -10 -9 -8 -7 -7 -7 -6 ------- Run | Yrd Mat Min Exi Min Mat Fac Was Fac Fac Active Infowar (turns) . | . . . . . . . . . . Robot Analysis Total . | . . . . . . . . . . Derelict Logs Recovered 3 | . . 1 . 2 . . . . . Drone Launches 2 | . . . . . . . . . 2 Drone Recoveries . | . . . . . . . . . . Exploration | -11 -10 -10 -10 -9 -8 -7 -7 -7 -6 ------------- Run | Yrd Mat Min Exi Min Mat Fac Was Fac Fac Turns Passed 5614 | 59 599 1038 362 312 423 1570 88 751 412 Spaces Moved 5318 | 38 383 486 234 153 477 1485 166 1161 735 Core 18 | 2 . . . . . . . . 16 Treads . | . . . . . . . . . . Legs 1325 | 36 383 486 234 153 . 32 . 1 . Wheels . | . . . . . . . . . . Hover 10 | . . . . . . . . . 10 Flight 3965 | . . . . . 477 1453 166 1160 709 Fastest Speed 23 | 50 120 120 120 190 26 24 52 24 23 Average Speed 71 | 129 120 120 152 190 45 73 52 36 32 Slowest Speed 200 | 190 120 120 190 190 175 190 52 129 200 Overloaded Moves 411 | . . . . . . . . 136 275 Propulsion Burnouts 1 | . . . . . . . . . 1 Robots Hopped 20 | . . . . . 3 2 . 9 6 Potential Cave-ins 1 | . . . . . 1 . . . . Cave-ins Triggered . | . . . . . . . . . . Exploration Rate (%) 39 | 4 68 69 42 30 31 33 74 26 14 Regions Visited 9 Branch Regions 3 Pre-discovered Areas 2 | . . . . 2 . . . . . Known Exits Taken . | . . . . . . . . . . Unknown Exits Taken 7 | 1 1 1 1 1 1 . . 1 . Scrap Searched 3 | . . 1 . 2 . . . . . Spaces Dug 42 | . . . . . 39 2 . 1 . Terrain Destroyed 459 | . . 7 . 8 274 64 . 3 103 Melee . | . . . . . . . . . . Projectile 30 | . . . . . 12 12 . 3 3 AOE 429 | . . 7 . 8 262 52 . . 100 Terrain Rammed . | . . . . . . . . . . Walls Destroyed . | . . . . . . . . . . Machines Disabled . | . . . . . . . . . . Actions | -11 -10 -10 -10 -9 -8 -7 -7 -7 -6 --------- Run | Yrd Mat Min Exi Min Mat Fac Was Fac Fac Total 6625 | 45 451 936 243 169 583 1755 167 1437 839 Wait 881 | . 23 448 . 15 25 106 2 226 36 Move 5270 | 37 382 485 233 152 470 1481 165 1142 723 Hop 20 | . . . . . 3 2 . 9 6 Pick Up 40 | 2 3 . 2 . 10 12 . 6 5 Fast Attach 46 | 6 1 . 1 . 10 11 . 9 8 Attach 24 | . . . . . 6 6 . 2 10 Detach 3 | . . . . . 1 . . . 2 Swap 44 | . 6 1 . . 7 17 . 8 5 Drop 41 | . 1 . 7 . 7 9 . 10 7 Fire 247 | . 34 2 . 2 44 110 . 23 32 Melee . | . . . . . . . . . . Ram 2 | . . . . . . 1 . . 1 Kick 1 | . 1 . . . . . . . . Crush . | . . . . . . . . . . Escape Stasis . | . . . . . . . . . . Rewire 6 | . . . . . . . . 2 4 Trap . | . . . . . . . . . . Miscellaneous . | . . . . . . . . . . Route ------- -11/Scrapyard -10/Materials (discovered 2 exits: [*Mat] / *Min) -10/Mines (discovered 2 exits: [*Mat] / *Exi) -10/Exiles -9/Mines -8/Materials -7/Factory -7/Waste -7/Factory -6/Factory (discovered 1 exit: [*Low]) History --------- Turn | Location | Event 7 | -11/Scrapyard | Discovered new exit (range 16) 60 | -11/Scrapyard | Entered Materials 312 | -10/Materials | Build established: Mutant 409 | -10/Materials | Discovered new exit (range 11) 638 | -10/Materials | Discovered new exit (range 12) 659 | -10/Materials | Entered Mines 703 | -10/Mines | Found a Scrap Suit stashed away for nefarious purposes 819 | -10/Mines | Discovered new exit (range 9) 829 | -10/Mines | Learned Materials garrison access intel 920 | -10/Mines | YI-UF0 nonchalantly dropped a Grenade Launcher on the ground 1535 | -10/Mines | A weapon hastily lodged in a ceiling crevice suddenly fell to the ground 1692 | -10/Mines | Deemed a non-threat by the Exiles lab entrance 1692 | -10/Mines | Discovered new exit (range 5) 1697 | -10/Mines | Entered Exiles 1730 | -10/Exiles | Met 8R-AWN 1749 | -10/Exiles | Met EX-HEX 1787 | -10/Exiles | Met EX-BIN 1809 | -10/Exiles | Aligned with FarCom system 1810 | -10/Exiles | Given EX-Vault access code 1839 | -10/Exiles | Opened EX-Vault 1851 | -10/Exiles | Found YOLO Cannon 1862 | -10/Exiles | Found Flying Fortress v7 1901 | -10/Exiles | Warned to stay clear of 0b10 Research branches 2032 | -10/Exiles | Discovered new exit (range 15) 2059 | -10/Exiles | Stole two prototypes: YOLO Cannon, Flying Fortress v7 2059 | -10/Exiles | Entered Mines 2060 | -9/Mines | Learned location of Storage (-8) 2084 | -9/Mines | Met a Derelict bent on vengeance 2277 | -9/Mines | Learned Materials security intel 2277 | -9/Mines | Discovered new exit (range 12) 2371 | -9/Mines | Entered Materials 2371 | -8/Materials | Accompanied by 2 allies 2371 | -8/Materials | Evolved 4 slots: Power x1, Propulsion x2, Utility x1 2373 | -8/Materials | Loaded intel: 1 garrison access location 2376 | -8/Materials | Led the pair of lost Derelicts to an unsafe place 2490 | -8/Materials | Discovered new exit (range 15) 2616 | -8/Materials | YOLO Cannon suddenly exploded 2617 | -8/Materials | Core integrity fell below 50% 2670 | -8/Materials | Lost 6 parts (1p1n2u2w) 2794 | -8/Materials | Entered Factory 2794 | -7/Factory | Evolved 2 slots: Propulsion x1, Utility x1 2796 | -7/Factory | FarCom data flow suspended 3321 | -7/Factory | Repaired Enh. Nuclear Core 3846 | -7/Factory | Hacking Suite fried by hacking feedback 4041 | -7/Factory | Lost 7 parts (2p1n2u2w) 4241 | -7/Factory | Discovered new exit (range 8) 4280 | -7/Factory | Core integrity fell below 50% 4310 | -7/Factory | Lost 3 parts (1p1n1u) 4364 | -7/Factory | Sucked down chute 4364 | -7/Factory | Entered Waste 4368 | -7/Waste | Spotted C-40 Crusher 4369 | -7/Waste | Spotted C-40 Crusher 4398 | -7/Waste | Spotted C-40 Crusher 4399 | -7/Waste | Spotted C-40 Crusher 4412 | -7/Waste | Spotted C-40 Crusher 4434 | -7/Waste | Spotted C-40 Crusher 4443 | -7/Waste | Discovered new exit (range 16) 4452 | -7/Waste | Entered Factory 4901 | -7/Factory | Repaired Imp. VTOL Module 5155 | -7/Factory | Discovered new exit (range 15) 5203 | -7/Factory | Entered another Factory area 5203 | -6/Factory | Evolved 2 slots: Propulsion x1, Weapon x1 5212 | -6/Factory | Build established: Sprinter 5239 | -6/Factory | Discovered new exit (range 15) 5449 | -6/Factory | Lost 5 parts (1p1n3w) 5498 | -6/Factory | Lost 5 parts (2p1u2w) 5580 | -6/Factory | Core integrity fell below 50% 5604 | -6/Factory | Core integrity fell below 20% 5615 | -6/Factory | Destroyed by H-66 Slayer with Heavy Assault Rifle Last Messages --------------- 05598_ Acquired 10 matter. 05598_ R-10 Processor collects Targeting Computer. 05598_ Penetrated by Slug. 05599_ U-05 Engineer builds a Door. 05599_ R-10 Processor collects Gauss Rifle. 05599_ Fusion Compressor destroyed. 05601_ Penetrated by Slug. 05601_ Cld. VTOL Module destroyed. 05603_ Penetrated by Slug. 05605_ K-01 Serf cleans the TF Node. 05609_ K-01 Serf cleans the Fusion Modulator. 05610_ K-01 Serf collects debris. 05612_ Slug penetrates Fusion Modulator. 05613_ K-01 Serf cleans the Fusion Modulator. 05615_ Fusion Modulator explodes. 05615_ R-10 Processor destroyed. 05615_ H-66 Slayer destroyed. 05615_ Fusion Modulator explodes. 05615_ R-10 Processor destroyed. 05615_ Penetrated by Slug. Map ----- +----------------------------------------------------+ | ?????????????????????????????????????????????????? | | ?????????????????????????????????????????????????? | | ?????????????????????????????????????????????????? | | ?????????????????????????????????????????????????? | | ?????????????????????????????????????????????????? | | ?????????????????????????????????????????????????? | | ?????????????????????????????????????????????????? | | ?????????????????????????????????????????????????? | | ?????????????????????????????????????????????????? | | ?????????????????????????????????????????????????? | | ?????????????????????????????????##+##???????????? | | ?????????????????????????????????? #???????????? | | ?????????????????????????????????? " ???########## | | ?????????????????????????????????? ???# [ | | ??????????????????????????????????# #???# | | ??????????????????????????????????# #???# """" | | ???????????????????????????????#### ##### """" | | ???????????????????????????????# # """" | | ???????????????????????????????# # """" | | ???????????????????????????????# + """" | | ???????????????????????????????# # """" | | ????????????????????????########+## # | | ????????????????????????# # # | | ???????????????????????## ; # | | ??????????????????????##; ; # | | ??????????????????????# ;@k ; R ########## | | ??????????????????????##; ;h #????????? | | ?????????????????????? ; h[ #????????? | | ?????????????????????##;; ! * ;%u #????????? | | ??????????????????????# ; % !% ;* #????????? | | ??????????????????????# ;;;; ; % ########## | | ??????????????????????### ; = | | ???????????????????????? # # ## # | | ????????????????????????########??# | | ??????????????????????????????????# | | ??????????????????????????????????# | | ????????????????????????????????######+########## | | ????????????????????????????????# #??# | | ????????????????????????????????#""" """" #??# | | ????????????????????????????????#"Y """" #??# | | ????????????????????????????????#""" """" #??# | | ????????????????????????????????# """" #??# | | ????????????????????????????????# """" #??# | | ????????????????????????????????# """" #???? | | ????????????????????????????????# #???? | | ????????????????????????????????# #???? | | ????????????????????????????????# #???? | | ????????????????????????????????# #???? | | ????????????????????????????????# #???? | | ????????????????????????????????##############???? | +----------------------------------------------------+ Best States ------------- Heat Dissipation 56 Energy Generation 38 Energy Capacity 500 Matter Stores 300 Matter Capacity 300 Sight Range 16 Terrain Scan Density 10 Additional Mass Support 6 Armor Coverage 150 Weapon Cycling 15 Evasion (%) 65 Targeting Accuracy 8 Core Analysis 6 Offensive Hacking 10 Item Schematics ----------------- Cld. VTOL Module | -7/Factory | Scanalyzed Xenon Bombardment Thruster | -6/Factory | Scanalyzed Robot Schematics ------------------ None Fabricated ------------ Nothing Repaired ---------- Enh. Nuclear Core | 4% | -7/Factory Imp. VTOL Module | 12% | -7/Factory Studied --------- Deuterium Engine | -8/Materials | Hacked Mic. Nuclear Core | -6/Factory | Hacked Alien Tech Used ----------------- None Achievements -------------- Morally Flexible YOLO Challenges ------------ None Game ------ Seed ThrusterCompactObfuscator Manual? 0 Play Time 01:18:14 Cumulative 47.7 hours Start 2026.04.09 @ 20:39:26 End 2026.04.09 @ 22:49:38 Sessions 1 Manual Loads 0 Difficulty Rogue Special Mode None Game No. 82 Rogue 82 Adventurer 0 Explorer 0 Win Type - Total 0 Types 0/0/0/0/0/0/0/0/0/0 Lore% 20 Gallery% 25 Achievement% 21 Wizard Run 0 Options --------- Layout 0 ASCII 0 Keyboard 0 Movement Mouse Keybinds 0 Fullscreen 1 Font 24/Smallcaps Map View 38x25 Zoom Use 99% Tactical HUD 1 Map Filters NONE Filters NONE Steam 1 RUN: ebe989b0-f720-4cd2-b6ba-1d6fc4e37102